[Event "Live Chess"]
[Site "Chess.com"]
[Date "2024.06.02"]
[Round "-"]
[White "Grace6363"]
[Black "r0ad_t0-gm"]
[Result "0-1"]
[WhiteElo "1137"]
[BlackElo "2306"]
[TimeControl "300"]
[EndTime "6:42:39 PDT"]
[Termination "r0ad_t0-gm won by resignation"]

1. d4 {[%clk 0:04:56.5]} 1... Nf6 {[%clk 0:04:59.9]} 2. c4 {[%clk 0:04:55.4]}
2... g6 {[%clk 0:04:58.9]} 3. Nf3 {[%clk 0:04:54.2]} 3... Bg7 {[%clk 0:04:58.4]}
4. Nc3 {[%clk 0:04:53.5]} 4... O-O {[%clk 0:04:58.3]} 5. Bg5 {[%clk 0:04:52.4]}
5... h6 {[%clk 0:04:57.1]} 6. Bh4 {[%clk 0:04:50.8]} 6... d6 {[%clk 0:04:56.3]}
7. e4 {[%clk 0:04:50.1]} 7... c5 {[%clk 0:04:52.5]} 8. d5 {[%clk 0:04:48.6]}
8... b5 {[%clk 0:04:49.6]} 9. b3 {[%clk 0:04:47]} 9... g5 {[%clk 0:04:40.7]} 10.
Bg3 {[%clk 0:04:45.4]} 10... b4 {[%clk 0:04:38.7]} 11. Na4 {[%clk 0:04:41.7]}
11... Nh5 {[%clk 0:04:37.7]} 12. Be2 {[%clk 0:04:38.4]} 12... Bxa1 {[%clk
0:04:36]} 13. Qxa1 {[%clk 0:04:35.2]} 13... e5 {[%clk 0:04:28.7]} 14. h4 {[%clk
0:04:29.2]} 14... g4 {[%clk 0:04:25.4]} 15. Nh2 {[%clk 0:04:23.7]} 15... Nxg3
{[%clk 0:04:23.9]} 16. fxg3 {[%clk 0:04:22.6]} 16... h5 {[%clk 0:04:23.5]} 17.
Nf1 {[%clk 0:04:20.6]} 17... Nd7 {[%clk 0:04:20.6]} 18. Ne3 {[%clk 0:04:19.4]}
18... Nb6 {[%clk 0:04:19]} 19. Kd2 {[%clk 0:04:14.2]} 19... Nxa4 {[%clk
0:04:17.4]} 20. bxa4 {[%clk 0:04:12.9]} 20... Qe8 {[%clk 0:04:16.5]} 21. Qd1
{[%clk 0:04:09]} 21... f5 {[%clk 0:04:13.9]} 22. exf5 {[%clk 0:04:06.7]} 22...
Bxf5 {[%clk 0:04:09.3]} 23. Nxf5 {[%clk 0:04:04.8]} 23... Rxf5 {[%clk
0:04:09.2]} 24. Rf1 {[%clk 0:03:58.4]} 24... Qg6 {[%clk 0:04:06.3]} 25. Rxf5
{[%clk 0:03:56.2]} 25... Qxf5 {[%clk 0:04:06.2]} 26. Qc2 {[%clk 0:03:52.8]}
26... Qxc2+ {[%clk 0:04:04.9]} 27. Kxc2 {[%clk 0:03:52]} 27... a5 {[%clk
0:04:04.5]} 28. Bd3 {[%clk 0:03:48.3]} 28... Kg7 {[%clk 0:04:03.9]} 29. Bf5
{[%clk 0:03:46.6]} 29... Rf8 {[%clk 0:04:03.3]} 30. Bd3 {[%clk 0:03:37.6]} 30...
Rf2+ {[%clk 0:04:03.2]} 31. Kb1 {[%clk 0:03:35]} 31... Rxg2 {[%clk 0:04:03.1]}
0-1

[Event "Live Chess"]
[Site "Chess.com"]
[Date "2024.06.02"]
[Round "-"]
[White "Queensandpawns"]
[Black "MagnersCarlsberg2870"]
[Result "1-0"]
[WhiteElo "2298"]
[BlackElo "1769"]
[TimeControl "300"]
[EndTime "6:42:52 PDT"]
[Termination "Queensandpawns won by resignation"]

1. e4 {[%clk 0:04:58.9]} 1... d6 {[%clk 0:04:56.9]} 2. Nc3 {[%clk 0:04:57]} 2...
Nf6 {[%clk 0:04:55.8]} 3. d4 {[%clk 0:04:53.5]} 3... Nbd7 {[%clk 0:04:54.1]} 4.
Be3 {[%clk 0:04:52.3]} 4... e5 {[%clk 0:04:53.1]} 5. Qd2 {[%clk 0:04:52.2]} 5...
h6 {[%clk 0:04:51.5]} 6. Nf3 {[%clk 0:04:51.5]} 6... c6 {[%clk 0:04:49.9]} 7.
O-O-O {[%clk 0:04:50.6]} 7... Qc7 {[%clk 0:04:48.7]} 8. dxe5 {[%clk 0:04:49.3]}
8... dxe5 {[%clk 0:04:47.7]} 9. Bc4 {[%clk 0:04:47.8]} 9... b5 {[%clk
0:04:45.8]} 10. Bb3 {[%clk 0:04:46.4]} 10... a5 {[%clk 0:04:44.6]} 11. a4 {[%clk
0:04:39.2]} 11... Bb4 {[%clk 0:04:38.8]} 12. Qd3 {[%clk 0:04:23.5]} 12... Bxc3
{[%clk 0:04:35.8]} 13. Qxc3 {[%clk 0:03:41.8]} 13... Nxe4 {[%clk 0:04:33]} 14.
Qe1 {[%clk 0:03:37.8]} 14... bxa4 {[%clk 0:04:25.5]} 15. Bxa4 {[%clk 0:03:32]}
15... Ndc5 {[%clk 0:04:18.7]} 16. Bxc5 {[%clk 0:03:30.5]} 16... Nxc5 {[%clk
0:04:17.2]} 17. Nxe5 {[%clk 0:03:15.8]} 17... Nxa4 {[%clk 0:04:03.6]} 18. Nd7+
{[%clk 0:03:10.5]} 18... Kd8 {[%clk 0:03:58.2]} 19. Nb6+ {[%clk 0:02:58.6]}
19... Bd7 {[%clk 0:03:52.4]} 20. Rxd7+ {[%clk 0:02:56.2]} 20... Qxd7 {[%clk
0:03:51.6]} 21. Nxd7 {[%clk 0:02:56.1]} 21... Kxd7 {[%clk 0:03:50.9]} 22. Qe5
{[%clk 0:02:50.6]} 22... Nb6 {[%clk 0:03:38.9]} 23. Rd1+ {[%clk 0:02:48.5]}
23... Kc8 {[%clk 0:03:31.6]} 24. Qxg7 {[%clk 0:02:46.4]} 24... Kb7 {[%clk
0:03:29.9]} 25. Qxf7+ {[%clk 0:02:45.3]} 25... Ka6 {[%clk 0:03:25.5]} 26. Qf3
{[%clk 0:02:15.3]} 26... Rhf8 {[%clk 0:03:19.7]} 27. Qd3+ {[%clk 0:02:12.8]}
27... Kb7 {[%clk 0:03:16.8]} 28. Qh7+ {[%clk 0:02:09.3]} 28... Ka6 {[%clk
0:03:14.7]} 29. Qxh6 {[%clk 0:02:08.5]} 29... Rxf2 {[%clk 0:03:09.9]} 30. Qxc6
{[%clk 0:02:04.4]} 30... Rff8 {[%clk 0:03:01.7]} 31. Rd6 {[%clk 0:02:01.9]}
31... Rab8 {[%clk 0:02:56.9]} 32. c4 {[%clk 0:01:54.2]} 32... Ka7 {[%clk
0:02:47.2]} 33. Qb5 {[%clk 0:01:49.1]} 33... Rfc8 {[%clk 0:02:36.8]} 34. Qxa5+
{[%clk 0:01:47.2]} 34... Kb7 {[%clk 0:02:36]} 35. Qxb6+ {[%clk 0:01:46.6]} 1-0

[Event "Live Chess"]
[Site "Chess.com"]
[Date "2024.06.02"]
[Round "-"]
[White "missedJariChance"]
[Black "JoeyCage"]
[Result "0-1"]
[WhiteElo "1384"]
[BlackElo "2397"]
[TimeControl "300"]
[EndTime "6:43:02 PDT"]
[Termination "JoeyCage won by resignation"]

1. b3 {[%clk 0:04:55.6]} 1... d5 {[%clk 0:04:58.2]} 2. Bb2 {[%clk 0:04:52.4]}
2... Nc6 {[%clk 0:04:57.2]} 3. Nf3 {[%clk 0:04:51.2]} 3... Nf6 {[%clk
0:04:55.3]} 4. e3 {[%clk 0:04:50.2]} 4... Bf5 {[%clk 0:04:53.9]} 5. Be2 {[%clk
0:04:47]} 5... a6 {[%clk 0:04:52.7]} 6. O-O {[%clk 0:04:45]} 6... e6 {[%clk
0:04:51.6]} 7. d3 {[%clk 0:04:30.5]} 7... Bd6 {[%clk 0:04:43.1]} 8. Nbd2 {[%clk
0:04:27.6]} 8... e5 {[%clk 0:04:40.3]} 9. e4 {[%clk 0:03:57.6]} 9... dxe4 {[%clk
0:04:36.3]} 10. dxe4 {[%clk 0:03:56.1]} 10... Nxe4 {[%clk 0:04:34.8]} 11. Nxe4
{[%clk 0:03:49.3]} 11... Bxe4 {[%clk 0:04:32.9]} 12. Re1 {[%clk 0:03:42.7]}
12... Bf5 {[%clk 0:04:26.8]} 13. Bc4 {[%clk 0:03:29.9]} 13... O-O {[%clk
0:04:21.9]} 14. Qe2 {[%clk 0:02:53]} 14... Re8 {[%clk 0:04:18.8]} 15. Rad1
{[%clk 0:02:43.9]} 15... Qf6 {[%clk 0:04:16.8]} 16. Bd3 {[%clk 0:02:38.7]} 16...
Bxd3 {[%clk 0:04:10.5]} 17. Qxd3 {[%clk 0:02:36]} 17... Qg6 {[%clk 0:04:06.4]}
18. Qxg6 {[%clk 0:02:28.6]} 18... hxg6 {[%clk 0:04:04.5]} 19. h3 {[%clk
0:02:18.2]} 19... f6 {[%clk 0:04:02.1]} 20. Nh4 {[%clk 0:02:07.8]} 20... Kf7
{[%clk 0:03:59.8]} 21. g3 {[%clk 0:01:56.5]} 21... Rad8 {[%clk 0:03:58]} 22. Kg2
{[%clk 0:01:52.9]} 22... Bb4 {[%clk 0:03:54.8]} 23. Rxd8 {[%clk 0:01:45.1]}
23... Rxd8 {[%clk 0:03:53]} 24. Re4 {[%clk 0:01:39.4]} 24... Rd2 {[%clk
0:03:48.3]} 25. a3 {[%clk 0:01:12.9]} 25... Bc5 {[%clk 0:03:42.4]} 0-1

[Event "Live Chess"]
[Site "Chess.com"]
[Date "2024.06.02"]
[Round "-"]
[White "nyclone"]
[Black "JanMur7"]
[Result "0-1"]
[WhiteElo "1147"]
[BlackElo "2297"]
[TimeControl "300"]
[EndTime "6:43:40 PDT"]
[Termination "JanMur7 won by checkmate"]

1. e4 {[%clk 0:04:59.3]} 1... g6 {[%clk 0:04:58.8]} 2. Nc3 {[%clk 0:04:56.2]}
2... Bg7 {[%clk 0:04:58.2]} 3. b3 {[%clk 0:04:50.6]} 3... c5 {[%clk 0:04:56.7]}
4. Bb2 {[%clk 0:04:49.6]} 4... Nc6 {[%clk 0:04:55.7]} 5. Bb5 {[%clk 0:04:43]}
5... d6 {[%clk 0:04:53.2]} 6. Bxc6+ {[%clk 0:04:40.8]} 6... bxc6 {[%clk
0:04:51.8]} 7. d3 {[%clk 0:04:40.1]} 7... Qa5 {[%clk 0:04:49.1]} 8. Qd2 {[%clk
0:04:32.5]} 8... Rb8 {[%clk 0:04:47.6]} 9. Nge2 {[%clk 0:04:31.5]} 9... Nf6
{[%clk 0:04:44.9]} 10. O-O {[%clk 0:04:30.1]} 10... O-O {[%clk 0:04:43.3]} 11.
Qc1 {[%clk 0:04:12.8]} 11... d5 {[%clk 0:04:33.9]} 12. exd5 {[%clk 0:04:09.1]}
12... cxd5 {[%clk 0:04:31.3]} 13. Na4 {[%clk 0:03:52.2]} 13... d4 {[%clk
0:04:21.4]} 14. Ng3 {[%clk 0:03:40.5]} 14... Bd7 {[%clk 0:04:19.1]} 15. Re1
{[%clk 0:03:31.1]} 15... Bxa4 {[%clk 0:04:15.8]} 16. bxa4 {[%clk 0:03:31]} 16...
e6 {[%clk 0:04:12]} 17. Ne4 {[%clk 0:03:25.5]} 17... Nxe4 {[%clk 0:04:09.6]} 18.
Rxe4 {[%clk 0:03:23.9]} 18... Qxa4 {[%clk 0:04:06.4]} 19. Ba3 {[%clk 0:03:04.1]}
19... Rfc8 {[%clk 0:04:02.4]} 20. Rg4 {[%clk 0:02:57.5]} 20... c4 {[%clk
0:03:57]} 21. dxc4 {[%clk 0:02:49.2]} 21... Qxc4 {[%clk 0:03:55.1]} 22. Be7
{[%clk 0:02:40]} 22... Qxc2 {[%clk 0:03:48.5]} 23. Qg5 {[%clk 0:02:38.1]} 23...
Rb1+ {[%clk 0:03:44.4]} 24. Rxb1 {[%clk 0:02:33.2]} 24... Qxb1+ {[%clk
0:03:44.3]} 25. Qc1 {[%clk 0:02:31.3]} 25... Qxc1# {[%clk 0:03:44.2]} 0-1

[Event "Live Chess"]
[Site "Chess.com"]
[Date "2024.06.02"]
[Round "-"]
[White "Dashman93"]
[Black "vincents82"]
[Result "1-0"]
[WhiteElo "2145"]
[BlackElo "1984"]
[TimeControl "300"]
[EndTime "6:43:55 PDT"]
[Termination "Dashman93 won by resignation"]

1. e4 {[%clk 0:04:58.7]} 1... d5 {[%clk 0:04:57.1]} 2. exd5 {[%clk 0:04:57.8]}
2... Qxd5 {[%clk 0:04:55.9]} 3. Nc3 {[%clk 0:04:57.4]} 3... Qd8 {[%clk
0:04:53.1]} 4. Bc4 {[%clk 0:04:56.8]} 4... Nf6 {[%clk 0:04:50.9]} 5. d4 {[%clk
0:04:55.5]} 5... a6 {[%clk 0:04:49.9]} 6. Bb3 {[%clk 0:04:54.6]} 6... Bg4 {[%clk
0:04:43.9]} 7. Nf3 {[%clk 0:04:53.6]} 7... Nc6 {[%clk 0:04:41]} 8. d5 {[%clk
0:04:48.9]} 8... Ne5 {[%clk 0:04:38.5]} 9. Be3 {[%clk 0:04:38.4]} 9... Nxf3+
{[%clk 0:04:32]} 10. gxf3 {[%clk 0:04:38.3]} 10... Bf5 {[%clk 0:04:31.2]} 11.
Qd4 {[%clk 0:04:35.6]} 11... Qd7 {[%clk 0:04:29.2]} 12. O-O-O {[%clk 0:04:33.9]}
12... g6 {[%clk 0:04:26.2]} 13. d6 {[%clk 0:04:08.7]} 13... cxd6 {[%clk
0:04:21.3]} 14. Nd5 {[%clk 0:04:07.5]} 14... Nxd5 {[%clk 0:04:11.3]} 15. Qxh8
{[%clk 0:04:05]} 15... O-O-O {[%clk 0:04:10.1]} 16. Bxd5 {[%clk 0:03:55.7]}
16... e6 {[%clk 0:03:35.9]} 17. Qc3+ {[%clk 0:03:49.6]} 17... Kb8 {[%clk
0:03:34.4]} 18. Be4 {[%clk 0:03:48.6]} 18... Rc8 {[%clk 0:03:32.6]} 19. Qb3
{[%clk 0:03:44.8]} 19... d5 {[%clk 0:03:26.7]} 20. Bxf5 {[%clk 0:03:41.3]} 20...
gxf5 {[%clk 0:03:25.2]} 21. Qb6 {[%clk 0:03:40.2]} 1-0

[Event "Live Chess"]
[Site "Chess.com"]
[Date "2024.06.02"]
[Round "-"]
[White "matt1979"]
[Black "Plimsol"]
[Result "0-1"]
[WhiteElo "1421"]
[BlackElo "2349"]
[TimeControl "300"]
[EndTime "6:44:13 PDT"]
[Termination "Plimsol won by resignation"]

1. f4 {[%clk 0:04:58.9]} 1... g6 {[%clk 0:04:58.5]} 2. Nf3 {[%clk 0:04:57.6]}
2... Bg7 {[%clk 0:04:58]} 3. e4 {[%clk 0:04:54.8]} 3... c5 {[%clk 0:04:56.3]} 4.
d3 {[%clk 0:04:50.8]} 4... Nc6 {[%clk 0:04:54.4]} 5. Be2 {[%clk 0:04:49.3]} 5...
e6 {[%clk 0:04:48.2]} 6. c3 {[%clk 0:04:45.2]} 6... Nge7 {[%clk 0:04:45.9]} 7.
O-O {[%clk 0:04:43.4]} 7... d6 {[%clk 0:04:44.9]} 8. Qe1 {[%clk 0:04:41.8]} 8...
O-O {[%clk 0:04:43.1]} 9. Qh4 {[%clk 0:04:39.2]} 9... b6 {[%clk 0:04:38.5]} 10.
Na3 {[%clk 0:04:31.8]} 10... Ba6 {[%clk 0:04:36.5]} 11. Nc2 {[%clk 0:04:29.7]}
11... d5 {[%clk 0:04:32.6]} 12. Ng5 {[%clk 0:04:20.5]} 12... h6 {[%clk
0:04:29.9]} 13. Nf3 {[%clk 0:04:13.3]} 13... dxe4 {[%clk 0:04:28.6]} 14. dxe4
{[%clk 0:04:11]} 14... Bxe2 {[%clk 0:04:27.3]} 15. Rf2 {[%clk 0:04:01.3]} 15...
Bxf3 {[%clk 0:04:15.5]} 16. Rxf3 {[%clk 0:03:53.5]} 16... Qd1+ {[%clk
0:04:09.7]} 17. Rf1 {[%clk 0:03:50.4]} 17... Qxc2 {[%clk 0:04:07.3]} 18. f5
{[%clk 0:03:47]} 18... exf5 {[%clk 0:04:05.9]} 19. Bxh6 {[%clk 0:03:44.9]} 19...
Qxe4 {[%clk 0:04:04.5]} 20. Bxg7 {[%clk 0:03:43]} 20... Qxh4 {[%clk 0:04:02.6]}
0-1

[Event "Live Chess"]
[Site "Chess.com"]
[Date "2024.06.02"]
[Round "-"]
[White "resipsa6"]
[Black "NeilDruggan73"]
[Result "1/2-1/2"]
[WhiteElo "2020"]
[BlackElo "1720"]
[TimeControl "300"]
[EndTime "6:44:17 PDT"]
[Termination "Game drawn by repetition"]

1. e4 {[%clk 0:04:59.6]} 1... d6 {[%clk 0:04:58]} 2. d4 {[%clk 0:04:58.8]} 2...
Nf6 {[%clk 0:04:55.8]} 3. Nc3 {[%clk 0:04:57.6]} 3... g6 {[%clk 0:04:54.8]} 4.
Bd3 {[%clk 0:04:57]} 4... Bg7 {[%clk 0:04:53.5]} 5. Nf3 {[%clk 0:04:56.6]} 5...
O-O {[%clk 0:04:51.8]} 6. O-O {[%clk 0:04:56.1]} 6... Nbd7 {[%clk 0:04:47.7]} 7.
Bg5 {[%clk 0:04:54.9]} 7... e5 {[%clk 0:04:45.3]} 8. dxe5 {[%clk 0:04:54.1]}
8... dxe5 {[%clk 0:04:43]} 9. Nd5 {[%clk 0:04:50.9]} 9... c6 {[%clk 0:04:38.4]}
10. Nxf6+ {[%clk 0:04:50.1]} 10... Bxf6 {[%clk 0:04:36]} 11. Bxf6 {[%clk
0:04:49.3]} 11... Qxf6 {[%clk 0:04:34.8]} 12. Qe2 {[%clk 0:04:43.7]} 12... Nc5
{[%clk 0:04:28.6]} 13. h3 {[%clk 0:04:42.7]} 13... Be6 {[%clk 0:04:22.2]} 14.
Bc4 {[%clk 0:04:38.8]} 14... Qf4 {[%clk 0:04:10.2]} 15. Bxe6 {[%clk 0:04:36.3]}
15... fxe6 {[%clk 0:04:02]} 16. Rfe1 {[%clk 0:04:33.6]} 16... Rad8 {[%clk
0:03:58.9]} 17. Qc4 {[%clk 0:04:32.6]} 17... b6 {[%clk 0:03:49.3]} 18. b4 {[%clk
0:04:30.1]} 18... Rd4 {[%clk 0:03:29.4]} 19. Qc3 {[%clk 0:04:08.1]} 19... Nxe4
{[%clk 0:03:17.7]} 20. Qxc6 {[%clk 0:04:06.9]} 20... Nxf2 {[%clk 0:02:52.3]} 21.
Qxe6+ {[%clk 0:03:59.6]} 21... Kg7 {[%clk 0:02:34.7]} 22. Kxf2 {[%clk
0:03:55.9]} 22... e4 {[%clk 0:02:28.2]} 23. Re3 {[%clk 0:02:42.8]} 23... exf3
{[%clk 0:02:13.4]} 24. Rxf3 {[%clk 0:02:37.8]} 24... Rd2+ {[%clk 0:02:09.3]} 25.
Kf1 {[%clk 0:02:12.7]} 25... Qh2 {[%clk 0:01:16.2]} 26. Qe7+ {[%clk 0:02:08.9]}
26... Kh6 {[%clk 0:00:55.4]} 27. Qxf8+ {[%clk 0:02:07.7]} 27... Kh5 {[%clk
0:00:51.6]} 28. g4+ {[%clk 0:01:52.3]} 28... Kg5 {[%clk 0:00:39]} 29. Qe7+
{[%clk 0:00:10.1]} 29... Kh6 {[%clk 0:00:33.7]} 30. Qf8+ {[%clk 0:00:09.3]}
30... Kg5 {[%clk 0:00:32.4]} 31. Qe7+ {[%clk 0:00:08.5]} 31... Kh6 {[%clk
0:00:27]} 32. Qf8+ {[%clk 0:00:07.7]} 32... Kg5 {[%clk 0:00:24.3]} 1/2-1/2

[Event "Live Chess"]
[Site "Chess.com"]
[Date "2024.06.02"]
[Round "-"]
[White "OxonChess"]
[Black "TheSmoulderingMaster"]
[Result "0-1"]
[WhiteElo "1744"]
[BlackElo "1770"]
[TimeControl "300"]
[EndTime "6:44:18 PDT"]
[Termination "TheSmoulderingMaster won by resignation"]

1. Nf3 {[%clk 0:04:56.6]} 1... d5 {[%clk 0:04:58.3]} 2. c4 {[%clk 0:04:55.6]}
2... d4 {[%clk 0:04:56.7]} 3. b4 {[%clk 0:04:53.8]} 3... b6 {[%clk 0:04:53.9]}
4. Bb2 {[%clk 0:04:49]} 4... c5 {[%clk 0:04:52.1]} 5. g3 {[%clk 0:04:42.5]} 5...
Bb7 {[%clk 0:04:49.4]} 6. Bg2 {[%clk 0:04:41.7]} 6... Nc6 {[%clk 0:04:46.6]} 7.
b5 {[%clk 0:04:38.8]} 7... Na5 {[%clk 0:04:44.1]} 8. d3 {[%clk 0:04:35.8]} 8...
Nf6 {[%clk 0:04:42.9]} 9. O-O {[%clk 0:04:34.4]} 9... e6 {[%clk 0:04:41.5]} 10.
Nbd2 {[%clk 0:04:33.4]} 10... Bd6 {[%clk 0:04:39.6]} 11. Nb3 {[%clk 0:04:26.5]}
11... Nxb3 {[%clk 0:04:33.7]} 12. axb3 {[%clk 0:04:26]} 12... Qc7 {[%clk
0:04:31.1]} 13. Ra4 {[%clk 0:04:21.1]} 13... O-O {[%clk 0:04:25.3]} 14. Bc1
{[%clk 0:04:15.4]} 14... Rfe8 {[%clk 0:04:23.1]} 15. Bg5 {[%clk 0:04:13.8]}
15... Nh5 {[%clk 0:04:18]} 16. Qc2 {[%clk 0:04:09.7]} 16... e5 {[%clk
0:04:15.4]} 17. Rfa1 {[%clk 0:04:07.1]} 17... h6 {[%clk 0:03:52.8]} 18. Bd2
{[%clk 0:04:03.3]} 18... e4 {[%clk 0:03:50.3]} 19. Ne1 {[%clk 0:03:52.1]} 19...
e3 {[%clk 0:03:48.5]} 20. fxe3 {[%clk 0:03:47.5]} 20... dxe3 {[%clk 0:03:47.5]}
21. Bc3 {[%clk 0:03:44.6]} 21... Bxg3 {[%clk 0:03:44]} 22. hxg3 {[%clk
0:03:38.9]} 22... Qxg3 {[%clk 0:03:41.9]} 23. Rxa7 {[%clk 0:03:30.7]} 23... Qf2+
{[%clk 0:03:38]} 24. Kh2 {[%clk 0:03:25.1]} 24... Rxa7 {[%clk 0:03:32.8]} 25.
Rxa7 {[%clk 0:03:23.1]} 25... Bxg2 {[%clk 0:03:25]} 26. Nxg2 {[%clk 0:03:21.1]}
26... Nf4 {[%clk 0:03:24.2]} 0-1

[Event "Live Chess"]
[Site "Chess.com"]
[Date "2024.06.02"]
[Round "-"]
[White "degringolade64"]
[Black "AndrewBak1"]
[Result "1-0"]
[WhiteElo "2087"]
[BlackElo "1876"]
[TimeControl "300"]
[EndTime "6:44:27 PDT"]
[Termination "degringolade64 won on time"]

1. e4 {[%clk 0:04:56.7]} 1... c5 {[%clk 0:04:59.2]} 2. Nf3 {[%clk 0:04:55.7]}
2... Nc6 {[%clk 0:04:58.5]} 3. Bb5 {[%clk 0:04:55.2]} 3... e6 {[%clk 0:04:57.5]}
4. Bxc6 {[%clk 0:04:52.8]} 4... bxc6 {[%clk 0:04:57.4]} 5. d3 {[%clk 0:04:50.4]}
5... d5 {[%clk 0:04:56.9]} 6. b3 {[%clk 0:04:47.2]} 6... Nf6 {[%clk 0:04:55.8]}
7. Qe2 {[%clk 0:04:45.3]} 7... Be7 {[%clk 0:04:54.9]} 8. O-O {[%clk 0:04:22.1]}
8... O-O {[%clk 0:04:52.4]} 9. Nc3 {[%clk 0:04:18.9]} 9... Nd7 {[%clk
0:04:40.7]} 10. e5 {[%clk 0:04:13.3]} 10... f6 {[%clk 0:04:28.5]} 11. Na4 {[%clk
0:03:50.4]} 11... fxe5 {[%clk 0:04:19.9]} 12. Nxe5 {[%clk 0:03:48.9]} 12... Qc7
{[%clk 0:04:13.7]} 13. f4 {[%clk 0:03:36.5]} 13... Bf6 {[%clk 0:04:00.3]} 14.
Bb2 {[%clk 0:03:27.7]} 14... Nxe5 {[%clk 0:03:15.8]} 15. Bxe5 {[%clk 0:03:21.3]}
15... Bxe5 {[%clk 0:03:13.4]} 16. fxe5 {[%clk 0:03:13.8]} 16... Qe7 {[%clk
0:03:03.2]} 17. Rxf8+ {[%clk 0:03:10]} 17... Qxf8 {[%clk 0:03:01.2]} 18. Rf1
{[%clk 0:03:09.3]} 18... Qe7 {[%clk 0:03:00.8]} 19. Qf2 {[%clk 0:03:01.9]} 19...
Bd7 {[%clk 0:02:35.3]} 20. Qxc5 {[%clk 0:02:57.8]} 20... Qxc5+ {[%clk
0:02:30.4]} 21. Nxc5 {[%clk 0:02:56.2]} 21... Rd8 {[%clk 0:02:30]} 22. d4 {[%clk
0:02:50.3]} 22... Bc8 {[%clk 0:02:28.3]} 23. Rf3 {[%clk 0:02:28.1]} 23... Rf8
{[%clk 0:02:01.2]} 24. Rxf8+ {[%clk 0:02:25.1]} 24... Kxf8 {[%clk 0:02:01.1]}
25. Kf2 {[%clk 0:02:23.7]} 25... Kf7 {[%clk 0:02:00.2]} 26. Ke3 {[%clk
0:02:20.2]} 26... Kg6 {[%clk 0:02:00.1]} 27. a4 {[%clk 0:02:15.3]} 27... Kf5
{[%clk 0:02:00]} 28. b4 {[%clk 0:02:07.3]} 28... g5 {[%clk 0:01:58.3]} 29. b5
{[%clk 0:01:56]} 29... cxb5 {[%clk 0:01:22.3]} 30. axb5 {[%clk 0:01:55.9]} 30...
g4 {[%clk 0:01:05.6]} 31. g3 {[%clk 0:01:39.1]} 31... h5 {[%clk 0:01:03.2]} 32.
Kd3 {[%clk 0:01:25.8]} 32... Kg5 {[%clk 0:00:54.2]} 33. Kc3 {[%clk 0:01:24.2]}
33... h4 {[%clk 0:00:52.2]} 34. Kb4 {[%clk 0:01:23]} 34... h3 {[%clk 0:00:44.7]}
35. Ka5 {[%clk 0:01:21.1]} 35... Kf5 {[%clk 0:00:44]} 36. b6 {[%clk 0:01:19.5]}
36... axb6+ {[%clk 0:00:43.9]} 37. Kxb6 {[%clk 0:01:18.3]} 37... Bd7 {[%clk
0:00:09.9]} 38. Nxd7 {[%clk 0:01:12.7]} 38... Ke4 {[%clk 0:00:09.5]} 39. Nc5+
{[%clk 0:01:12.1]} 39... Kxd4 {[%clk 0:00:07.5]} 40. Nd3 {[%clk 0:00:57.4]}
40... Ke3 {[%clk 0:00:06.2]} 41. Kc6 {[%clk 0:00:56.2]} 41... Kf3 {[%clk
0:00:04.5]} 42. Kd6 {[%clk 0:00:55.6]} 42... Kg2 {[%clk 0:00:04.4]} 43. Kxe6
{[%clk 0:00:54.9]} 43... Kxh2 {[%clk 0:00:04.3]} 44. Kf7 {[%clk 0:00:51.9]}
44... Kxg3 {[%clk 0:00:04.2]} 45. e6 {[%clk 0:00:50.7]} 45... h2 {[%clk
0:00:03.7]} 46. e7 {[%clk 0:00:43.8]} 46... h1=Q {[%clk 0:00:02.5]} 47. e8=Q
{[%clk 0:00:42.7]} 47... Qh5+ {[%clk 0:00:01.1]} 48. Ke7 {[%clk 0:00:40.4]}
48... Qxe8+ {[%clk 0:00:00.7]} 49. Kxe8 {[%clk 0:00:39.5]} 49... Kf3 {[%clk
0:00:00.3]} 50. Ke7 {[%clk 0:00:37.1]} 1-0

[Event "Live Chess"]
[Site "Chess.com"]
[Date "2024.06.02"]
[Round "-"]
[White "MagnersCarlsberg2870"]
[Black "Purple1szed"]
[Result "1-0"]
[WhiteElo "1782"]
[BlackElo "2028"]
[TimeControl "300"]
[EndTime "6:44:28 PDT"]
[Termination "MagnersCarlsberg2870 won by resignation"]

1. d4 {[%clk 0:04:57.9]} 1... d5 {[%clk 0:04:58.8]} 2. e3 {[%clk 0:04:56.5]}
2... Nf6 {[%clk 0:04:57.8]} 3. Bd3 {[%clk 0:04:55.7]} 3... c5 {[%clk 0:04:57.5]}
4. c3 {[%clk 0:04:54.6]} 4... c4 {[%clk 0:04:56.6]} 5. Bc2 {[%clk 0:04:53.6]}
5... Nc6 {[%clk 0:04:56.5]} 6. f4 {[%clk 0:04:52.6]} 6... e5 {[%clk 0:04:56.2]}
7. fxe5 {[%clk 0:04:51.1]} 7... Nd7 {[%clk 0:04:56.1]} 8. Nf3 {[%clk 0:04:44.2]}
8... Be7 {[%clk 0:04:55.7]} 9. O-O {[%clk 0:04:43.1]} 9... O-O {[%clk
0:04:55.3]} 10. Qe2 {[%clk 0:04:41]} 10... f6 {[%clk 0:04:53.9]} 11. e4 {[%clk
0:04:39.7]} 11... fxe5 {[%clk 0:04:52.3]} 12. exd5 {[%clk 0:04:38.7]} 12... Na5
{[%clk 0:04:42.8]} 13. Qe4 {[%clk 0:04:37.5]} 13... g6 {[%clk 0:04:41.1]} 14.
Bh6 {[%clk 0:04:35.8]} 14... Re8 {[%clk 0:04:37.3]} 15. Nxe5 {[%clk 0:04:34.7]}
15... Nxe5 {[%clk 0:04:29.2]} 16. Qxe5 {[%clk 0:04:33.3]} 16... Bf8 {[%clk
0:04:20.8]} 17. Rxf8+ {[%clk 0:04:28.7]} 1-0